bitfinex/quotes_SOLUSD_20251024
["timestamp","ask_amount","ask_price","bid_price","bid_amount"]
[1761325341349,2.27707789,191.26,191.2,2.27707789]
[1761325341529,0.67,191.25,191.21,2.27707789]
[1761325342543,0.67,191.25,191.22,2.27707789]
[1761325343041,0.67,191.25,191.19,18.30639676]
[1761325343231,0.67,191.25,191.21,2.27707789]
[1761325343625,0.67,191.25,191.19,7.50747696]
[1761325343836,8.17586671,191.25,191.19,7.50747696]
[1761325344034,0.67,191.24,191.19,7.50747696]
[1761325344736,0.67,191.24,191.19,2.27707789]
[1761325344941,0.67,191.24,191.18,2.27707789]
[1761325345140,5.89909475,191.24,191.16,13.07736666]
[1761325345345,2.27707789,191.23,191.16,2.27707789]
[1761325345527,2.94707789,191.23,191.16,2.27707789]
[1761325345728,5.22909475,191.24,191.12,7.50939266]
[1761325345729,2.27707789,191.19,191.12,7.50939266]
[1761325346249,0.67,191.18,191.12,7.50939266]
[1761325346554,0.67,191.18,191.13,2.27707789]
[1761325346850,0.67,191.21,191.17,2.27707789]
[1761325347051,0.67,191.2,191.17,2.27707789]
[1761325347255,0.67,191.2,191.12,18.31310171]
[1761325347436,0.67,191.2,191.15,2.27707789]
[1761325348646,0.67,191.2,191.15,7.50847956]
[1761325349038,0.67,191.2,191.17,2.27707789]
[1761325349333,0.67,191.2,191.15,18.31013564]
[1761325349545,0.67,191.2,191.18,2.27707789]
[1761325349848,0.67,191.2,191.15,18.31013564]
[1761325349849,0.67,191.2,191.16,2.27707789]
[1761325350957,0.67,191.2,191.16,7.50806014]
[1761325351457,0.67,191.2,191.17,2.27707789]
[1761325352852,0.67,191.2,191.18,5.23067266]
[1761325354544,0.67,191.23,191.19,2.27707789]
[1761325354744,0.67,191.23,191.22,2.27707789]
[1761325356563,0.67,191.23,191.22,5.22957849]
[1761325356754,0.67,191.23,191.22,2.27707789]
[1761325358557,0.67,191.23,191.22,7.50665638]
[1761325359251,0.67,191.23,191.22,2.27707789]
[1761325360169,0.67,191.25,191.22,7.50665638]
[1761325360476,0.67,191.25,191.23,2.27707789]
[1761325360974,0.67,191.25,191.22,2.27707789]
[1761325361375,5.22792364,191.29,191.24,2.27707789]
[1761325361676,0.67,191.27,191.25,2.27707789]
[1761325361850,0.67,191.27,191.26,2.27707789]
[1761325362048,0.67,191.27,191.25,2.27707789]
[1761325362264,0.67,191.27,191.23,2.27707789]
[1761325362471,0.67,191.27,191.24,2.27707789]
[1761325363153,0.67,191.27,191.24,7.50589267]
[1761325365473,0.67,191.27,191.25,2.27707789]
[1761325366168,2.27707789,191.32,191.26,2.27707789]
[1761325366169,0.67,191.32,191.26,2.27707789]
[1761325366359,0.67,191.32,191.3,2.27707789]
[1761325366957,0.67,191.32,191.3,7.50432213]
[1761325367379,36.8,191.34,191.31,2.27707789]
[1761325367380,37.47,191.34,191.31,2.27707789]
[1761325367678,0.67,191.33,191.31,2.27707789]
[1761325367857,0.67,191.33,191.31,7.50417845]
[1761325368476,0.67,191.33,191.31,5.22710056]
[1761325368660,0.67,191.33,191.3,5.22735744]
[1761325369061,0.67,191.33,191.3,7.50443533]
[1761325371360,0.67,191.33,191.3,5.22735744]
[1761325371558,0.67,191.33,191.29,2.27707789]
[1761325372166,0.67,191.33,191.28,5.2279381]
[1761325372367,8.17365463,191.33,191.26,7.50556267]
[1761325372688,2.27707789,191.31,191.22,13.07328005]
[1761325372865,18.96300646,191.33,191.23,2.27707789]
[1761325372866,2.27707789,191.3,191.23,2.27707789]
[1761325373071,39.03707789,191.29,191.23,7.50617762]
[1761325373376,39.03707789,191.29,191.24,2.27707789]
[1761325373377,37.42,191.29,191.24,2.27707789]
[1761325373575,0.66,191.28,191.24,2.27707789]
[1761325375579,0.66,191.28,191.25,7.50583605]
[1761325378591,0.66,191.28,191.24,2.27707789]
[1761325379092,0.66,191.28,191.23,5.2292022]
[1761325379276,0.66,191.28,191.24,2.27707789]
[1761325379993,2.27707789,191.27,191.21,5.22959605]
[1761325380180,5.88801747,191.28,191.21,7.50667394]
[1761325380494,5.88801747,191.28,191.19,35.95584697]
[1761325380495,2.27707789,191.26,191.19,7.50721073]
[1761325380690,38.99707789,191.25,191.19,5.23013284]
[1761325381068,0.66,191.24,191.19,5.23013284]
[1761325381797,8.16611981,191.24,191.17,7.50802416]
[1761325381982,2.27707789,191.23,191.17,7.50802416]
[1761325382188,2.93707789,191.23,191.17,5.23094627]
[1761325382383,2.27707789,191.21,191.17,5.23094627]
[1761325382598,0.66,191.2,191.17,5.23094627]
[1761325383090,0.66,191.2,191.16,5.23117238]
[1761325383463,0.66,191.2,191.15,2.27707789]
[1761325383679,2.93707789,191.2,191.15,2.27707789]
[1761325384112,0.66,191.19,191.15,2.27707789]
[1761325384795,0.66,191.19,191.15,3.55927998]
[1761325385401,36.72,191.21,191.16,3.55927998]
[1761325385600,0.66,191.24,191.2,3.55927998]
[1761325385775,0.66,191.24,191.21,3.55927998]
[1761325385980,0.66,191.24,191.2,3.55927998]
[1761325386584,0.66,191.24,191.21,3.55927998]
[1761325387087,0.66,191.26,191.21,5.22969221]
[1761325387328,0.66,191.26,191.24,3.55927998]
[1761325387491,36.72,191.27,191.24,3.55927998]
[1761325387691,0.66,191.26,191.24,3.55927998]
[1761325388294,0.66,191.28,191.24,3.55927998]
[1761325388593,0.66,191.28,191.25,3.55927998]
[1761325389202,0.66,191.31,191.27,3.55927998]
[1761325389418,0.66,191.31,191.26,5.22848478]
[1761325389419,0.66,191.31,191.29,3.55927998]
[1761325389717,36.72,191.32,191.29,3.55927998]
[1761325389897,37.38,191.32,191.29,3.55927998]
[1761325390298,0.1,191.36,191.3,3.55927998]
[1761325390495,0.66,191.34,191.3,3.55927998]
[1761325391210,0.66,191.34,191.29,3.55927998]
[1761325392683,0.66,191.34,191.24,26.14436779]
[1761325392911,0.66,191.34,191.29,3.55927998]
[1761325393094,0.66,191.34,191.24,26.14436779]
[1761325393302,0.66,191.34,191.29,3.55927998]
[1761325393810,0.66,191.34,191.29,8.78674993]
[1761325394202,0.66,191.34,191.3,3.55927998]
[1761325394895,0.66,191.34,191.29,3.55927998]
[1761325395100,0.66,191.34,191.3,3.55927998]
[1761325395303,36.7,191.35,191.31,3.55927998]
[1761325395601,0.1,191.36,191.26,13.07121196]
[1761325395790,0.66,191.35,191.32,8.78595196]
[1761325396100,0.1,191.36,191.32,8.78595196]
[1761325396292,0.1,191.36,191.32,5.22667198]
[1761325396493,0.76,191.36,191.33,3.55927998]
[1761325396690,0.76,191.36,191.32,5.22667198]
[1761325396896,0.76,191.36,191.32,8.78595196]
[1761325397200,0.76,191.36,191.34,3.55927998]
[1761325397502,0.76,191.36,191.31,5.22706329]
[1761325397687,0.76,191.36,191.32,3.55927998]
[1761325398004,0.76,191.36,191.29,13.06849131]
[1761325398186,3.55927998,191.35,191.3,3.55927998]
[1761325398386,0.1,191.36,191.34,3.55927998]
[1761325398804,0.66,191.35,191.32,3.55927998]
[1761325398988,0.66,191.35,191.3,8.78641446]
[1761325399599,0.66,191.35,191.31,3.55927998]
[1761325399791,0.66,191.35,191.3,8.78641446]
[1761325400496,0.66,191.35,191.3,5.22713448]
[1761325400693,4.21927998,191.35,191.3,5.22713448]
[1761325400911,0.66,191.35,191.3,8.78641446]
[1761325401209,0.72,191.34,191.3,8.78641446]
[1761325401598,0.72,191.34,191.29,8.78688746]
[1761325403099,0.72,191.34,191.29,3.55927998]
[1761325403526,0.72,191.34,191.3,3.55927998]
[1761325403810,0.72,191.34,191.29,3.55927998]
[1761325404416,0.72,191.34,191.28,18.29778335]
[1761325404608,0.72,191.34,191.3,8.78643365]
[1761325405007,0.72,191.34,191.3,5.22715367]
[1761325406118,0.72,191.34,191.3,8.78643365]
[1761325408120,0.72,191.34,191.31,3.55927998]
[1761325408618,0.82,191.36,191.33,3.55927998]
[1761325408825,0.72,191.35,191.33,3.55927998]
[1761325409123,0.72,191.35,191.32,3.55927998]
[1761325410224,0.72,191.35,191.32,8.78592766]
[1761325411695,0.72,191.35,191.33,3.55927998]
[1761325412119,0.72,191.35,191.32,8.78592766]
[1761325412426,0.72,191.35,191.32,5.22664768]
[1761325413420,0.72,191.35,191.32,3.55927998]
[1761325415030,0.72,191.35,191.3,3.55927998]
[1761325415722,3.55927998,191.34,191.26,13.07120116]
[1761325415906,3.55927998,191.34,191.29,3.55927998]
[1761325416218,5.94605212,191.35,191.3,3.55927998]
[1761325416219,0.72,191.33,191.3,3.55927998]
[1761325417227,42.02576604,191.36,191.31,8.78639826]
[1761325417414,0.72,191.35,191.32,3.55927998]
[1761325418435,0.72,191.35,191.31,5.22711828]
[1761325418608,0.72,191.35,191.32,3.55927998]
[1761325418929,0.72,191.35,191.31,8.78639826]
[1761325423116,3.55927998,191.34,191.29,3.55927998]
[1761325423316,0.72,191.33,191.29,3.55927998]
[1761325423525,0.72,191.33,191.28,8.78721808]
[1761325424210,0.72,191.33,191.29,3.55927998]
[1761325425630,0.72,191.33,191.3,8.78667151]
[1761325426022,0.72,191.33,191.3,5.22739153]
[1761325426224,0.72,191.33,191.3,8.78667151]
[1761325427515,0.72,191.33,191.32,5.22684507]
[1761325428426,0.1,191.36,191.32,8.78612505]
[1761325428621,0.1,191.36,191.35,3.55927998]
[1761325429632,0.1,191.36,191.35,8.78530558]
[1761325433823,0.1,191.36,191.35,5.2260256]
[1761325434030,0.1,191.36,191.35,8.78530558]
[1761325440344,0.1,191.36,191.32,18.29395776]
[1761325440542,0.1,191.36,191.35,3.55927998]
[1761325441670,0.1,191.36,191.34,36.62]
[1761325441823,0.1,191.36,191.35,3.55927998]
[1761325442444,0.1,191.36,191.35,8.78530558]
[1761325443349,1e-08,191.36,191.35,31.66530558]
[1761325444754,1e-08,191.36,191.35,30.37767359]
[1761325445238,0.1,191.43,191.38,22.88]
[1761325445553,0.1,191.43,191.42,2.27164799]
[1761325446548,0.1,191.43,191.42,7.4957625]
[1761325446847,0.71,191.47,191.42,44.40497335]
[1761325447049,0.71,191.47,191.44,2.27164799]
[1761325447428,0.71,191.47,191.45,2.27164799]
[1761325448331,0.71,191.47,191.46,2.27164799]
[1761325448533,0.71,191.47,191.46,7.49467107]
[1761325449248,0.71,191.5,191.46,20.55222878]
[1761325449550,0.71,191.5,191.48,2.27164799]
[1761325450252,0.71,191.5,191.49,5.22220481]
[1761325451934,0.1,191.53,191.49,7.4938528]
[1761325452256,0.1,191.53,191.49,13.05551203]
[1761325452551,0.1,191.53,191.5,10.87647521]
[1761325452731,0.1,191.53,191.52,2.27164799]
[1761325452929,0.1,191.53,191.49,35.93551203]
[1761325452930,0.71,191.52,191.49,35.93551203]
[1761325453141,0.71,191.52,191.5,2.27164799]
[1761325453350,0.71,191.52,191.49,22.88]
[1761325453554,0.71,191.52,191.49,2.27164799]
[1761325453741,0.71,191.52,191.5,2.27164799]
[1761325454134,0.71,191.52,191.51,2.27164799]
[1761325454345,0.71,191.52,191.51,7.49330743]
[1761325454653,0.1,191.53,191.51,7.49330743]
[1761325454952,0.81,191.53,191.51,5.22165944]
[1761325455128,0.1,191.53,191.51,7.49330743]
[1761325455330,0.1,191.53,191.51,2.27164799]
[1761325455535,0.81,191.53,191.52,2.27164799]
[1761325455742,0.81,191.53,191.48,41.86244488]
[1761325455958,0.81,191.53,191.51,2.27164799]
[1761325456336,0.81,191.53,191.51,5.22159342]
[1761325457043,0.81,191.53,191.47,5.22253268]
[1761325457562,0.81,191.53,191.49,2.27164799]
[1761325458548,0.81,191.53,191.49,7.49369087]
[1761325458952,0.81,191.53,191.49,5.22204288]
[1761325459872,0.81,191.53,191.5,2.27164799]
[1761325460170,0.81,191.53,191.51,2.27164799]
[1761325460368,0.1,191.53,191.52,2.27164799]
[1761325460568,0.1,191.53,191.52,7.49303479]
[1761325466761,0.1,191.53,191.52,44.11303479]
[1761325467468,11.93460344,191.58,191.55,22.88]
[1761325467884,0.68,191.57,191.55,22.88]
[1761325468048,11.93460344,191.58,191.56,2.27164799]
[1761325468374,12.61460344,191.58,191.57,2.27164799]
[1761325468556,11.93460344,191.58,191.57,2.27164799]
[1761325468956,12.61460344,191.58,191.57,7.491672]
[1761325472067,12.61460344,191.58,191.57,5.22002401]
[1761325472271,12.61460344,191.58,191.53,15.32441463]
[1761325472480,0.68,191.57,191.53,15.32441463]
[1761325472651,2.27164799,191.55,191.46,4.29304927]
[1761325472968,11.93460344,191.58,191.5,2.27164799]
[1761325472969,0.68,191.54,191.5,2.27164799]
[1761325473368,0.68,191.54,191.51,2.27164799]
[1761325473763,0.68,191.54,191.5,2.27164799]
[1761325473965,0.68,191.54,191.52,2.27164799]
[1761325474177,0.68,191.57,191.53,2.27164799]
[1761325474362,0.68,191.57,191.56,2.27164799]
[1761325474563,0.68,191.57,191.48,36.62]
[1761325474785,0.68,191.57,191.55,2.27164799]
[1761325475174,0.68,191.57,191.56,5.22029651]
[1761325475677,0.68,191.57,191.54,5.22058953]
[1761325475881,0.68,191.57,191.52,2.27164799]
[1761325476088,2.95164799,191.57,191.51,15.32577208]
[1761325476569,0.68,191.56,191.51,15.32577208]
[1761325476770,2.95164799,191.56,191.52,5.2213868]
[1761325477157,0.68,191.55,191.51,18.27578353]
[1761325478374,17.15440265,191.58,191.51,18.27578353]
[1761325478375,0.68,191.54,191.51,5.22165944]
[1761325478669,0.68,191.54,191.53,2.27164799]
[1761325478989,0.68,191.56,191.53,2.27164799]
[1761325479314,0.68,191.56,191.51,18.27580804]
[1761325479315,0.68,191.56,191.54,2.27164799]
[1761325479595,0.68,191.56,191.55,2.27164799]
[1761325479766,0.68,191.56,191.51,54.91580804]
[1761325479968,0.68,191.56,191.54,2.27164799]
[1761325480368,0.68,191.56,191.51,54.91580804]
[1761325480683,0.68,191.56,191.54,2.27164799]
[1761325480875,0.68,191.56,191.53,2.27164799]
[1761325481464,0.68,191.56,191.54,2.27164799]
[1761325481889,0.68,191.56,191.51,54.91580804]
[1761325482185,0.68,191.56,191.55,5.22056904]
[1761325483788,0.68,191.56,191.52,5.2213868]
[1761325483990,0.68,191.56,191.53,5.22085526]
[1761325484910,0.68,191.56,191.53,7.49250325]
[1761325485278,0.68,191.56,191.53,5.22085526]
[1761325485598,0.68,191.56,191.54,2.27164799]
[1761325485775,0.68,191.56,191.55,2.27164799]
[1761325485979,11.93460344,191.58,191.53,49.67278546]
[1761325486185,11.93460344,191.58,191.57,2.27164799]
[1761325488095,11.93460344,191.58,191.57,7.491672]
[1761325488695,11.93460344,191.58,191.57,44.111672]
[1761325491283,11.93460344,191.58,191.57,41.84002401]
[1761325491485,11.93460344,191.58,191.57,44.111672]
[1761325495206,11.93460344,191.58,191.57,48.40472127]
[1761325495586,11.93460344,191.58,191.57,44.111672]
[1761325495985,11.93460344,191.58,191.57,5.22002401]
[1761325496183,11.93460344,191.58,191.57,44.071672]
[1761325496585,12.60460344,191.58,191.57,5.22002401]
[1761325496887,12.60460344,191.58,191.56,7.4918845]
[1761325497194,0.68,191.57,191.56,7.4918845]
[1761325497788,0.68,191.57,191.56,5.22023651]
[1761325497984,0.68,191.57,191.52,5.22112253]
[1761325498207,0.68,191.57,191.5,40.89304927]
[1761325498510,2.95164799,191.57,191.51,2.27164799]
[1761325498720,0.68,191.57,191.52,2.27164799]
[1761325498925,0.68,191.56,191.52,2.27164799]
[1761325499934,0.68,191.56,191.5,61.44135603]
[1761325499935,2.95164799,191.56,191.5,61.44135603]
[1761325500299,0.68,191.55,191.5,61.44135603]
[1761325500727,0.68,191.55,191.5,54.87665877]
[1761325500929,0.68,191.55,191.5,57.14830676]
[1761325501215,0.68,191.55,191.52,2.27164799]
[1761325501430,0.68,191.55,191.5,59.16970804]
[1761325501724,0.68,191.55,191.52,2.27164799]
[1761325502295,0.68,191.55,191.53,5.22111418]
[1761325504206,0.68,191.55,191.52,18.27467721]
[1761325505532,0.68,191.55,191.52,5.2213868]
[1761325505736,3.54543874,191.53,191.49,4.29304927]
[1761325505939,3.54543874,191.51,191.48,5.2223985]
[1761325506434,0.68,191.5,191.48,5.2223985]
[1761325507118,0.68,191.5,191.47,5.2227503]
[1761325509221,0.68,191.5,191.47,41.8027503]
[1761325509619,0.68,191.5,191.47,36.58]
[1761325510531,3.54543874,191.49,191.46,5.2228499]
[1761325510734,3.54543874,191.49,191.46,41.8028499]
[1761325510935,0.68,191.48,191.46,41.8028499]
[1761325511121,4.22543874,191.48,191.46,41.8028499]
[1761325511318,4.22543874,191.48,191.45,5.2232913]
[1761325511635,3.54543874,191.46,191.41,5.22438744]
[1761325511846,3.54543874,191.44,191.41,5.22438744]
[1761325512336,0.68,191.43,191.41,5.22438744]
[1761325512927,0.68,191.45,191.41,18.28535604]
[1761325513253,3.54543874,191.47,191.41,26.12384405]
[1761325513537,0.68,191.5,191.41,26.12384405]
[1761325513538,3.54543874,191.45,191.41,18.28535604]
[1761325513720,0.68,191.46,191.41,18.28535604]
[1761325513916,4.22543874,191.46,191.41,21.83079478]
[1761325514128,0.68,191.46,191.41,21.83079478]
[1761325514315,0.68,191.45,191.41,21.83079478]
[1761325515117,0.68,191.45,191.41,18.28535604]
[1761325515314,4.22543874,191.45,191.41,18.28535604]
[1761325515538,4.22543874,191.45,191.41,5.22438744]
[1761325515719,4.22543874,191.44,191.41,5.22438744]
[1761325516231,3.54543874,191.5,191.41,5.22438744]
[1761325516232,4.22543874,191.43,191.41,5.22438744]
[1761325516421,3.54543874,191.42,191.39,41.80467849]
[1761325516630,4.22543874,191.42,191.39,41.80467849]
[1761325516842,4.22543874,191.41,191.34,41.17204556]
[1761325517139,4.22543874,191.41,191.36,5.2257525]
[1761325517319,4.22543874,191.4,191.36,5.2257525]
[1761325517521,0.68,191.39,191.36,5.2257525]
[1761325518630,0.68,191.39,191.36,8.77119124]
[1761325519040,0.68,191.39,191.36,21.83557251]
[1761325519543,0.68,191.39,191.36,18.29013377]
[1761325521235,4.22543874,191.39,191.36,5.2257525]
[1761325521646,4.24543874,191.38,191.35,41.80598917]
[1761325521824,4.24543874,191.38,191.35,5.22598917]
[1761325522026,0.7,191.37,191.35,5.22598917]
[1761325522245,4.24543874,191.37,191.35,5.22598917]
[1761325522555,4.24543874,191.37,191.34,5.22628515]
[1761325522556,0.7,191.37,191.34,5.22628515]
[1761325522738,4.24543874,191.36,191.34,5.22628515]
[1761325522939,0.7,191.35,191.34,5.22628515]
[1761325523247,0.7,191.35,191.32,18.29330786]
[1761325524027,4.24543874,191.35,191.32,5.22684507]
[1761325524228,0.7,191.35,191.32,5.22684507]
[1761325524434,0.7,191.34,191.32,5.22684507]
[1761325524859,4.24543874,191.34,191.32,5.22684507]
[1761325525031,3.54543874,191.33,191.31,0.2]
[1761325525228,4.24543874,191.33,191.31,0.2]
[1761325525452,0.7,191.32,191.31,0.2]
[1761325525652,0.7,191.32,191.31,5.42702525]
[1761325525949,4.24543874,191.32,191.31,0.2]
[1761325528139,9.47244764,191.32,191.26,0.2]
[1761325528465,4.24543874,191.31,191.26,3.74543874]
[1761325528942,0.7,191.3,191.26,0.2]
[1761325529345,0.7,191.3,191.26,5.42848129]
[1761325529734,0.7,191.3,191.27,3.54543874]
[1761325530462,36.58,191.36,191.28,3.54543874]
[1761325530463,41.80579693,191.36,191.28,3.54543874]
[1761325530695,3.54543874,191.33,191.27,3.54543874]
[1761325530835,0.7,191.35,191.28,3.54543874]
[1761325531146,5.22579693,191.36,191.28,3.54543874]
[1761325531147,4.24543874,191.34,191.28,3.54543874]
[1761325531533,0.7,191.33,191.29,5.2276648]
[1761325534158,4.24543874,191.33,191.27,21.84417873]
[1761325534560,0.7,191.32,191.27,21.84417873]
[1761325534756,3.54543874,191.3,191.27,5.22821142]
[1761325534935,3.54543874,191.31,191.26,5.4284306]
[1761325535140,4.24543874,191.31,191.26,5.4284306]
[1761325535347,0.7,191.3,191.26,5.4284306]
[1761325536537,0.7,191.3,191.26,18.49964256]
[1761325537055,0.7,191.3,191.26,0.2]
[1761325537565,0.7,191.3,191.26,5.42845931]
[1761325538945,4.24543874,191.3,191.26,5.42845931]
[1761325539348,0.7,191.29,191.26,5.42845931]
[1761325539742,0.7,191.29,191.26,0.2]
[1761325540033,3.54543874,191.28,191.26,0.2]
[1761325540663,0.7,191.27,191.26,0.2]
[1761325540850,4.24543874,191.27,191.26,0.2]
[1761325544547,4.24543874,191.27,191.26,5.42848478]
[1761325545142,0.7,191.27,191.26,5.42848478]
[1761325546345,4.24543874,191.27,191.26,5.42848478]
[1761325546952,4.24543874,191.27,191.26,0.2]
[1761325547744,4.24543874,191.27,191.26,5.42848478]
[1761325548178,0.7,191.27,191.26,5.42848478]
[1761325548349,4.24543874,191.27,191.26,5.42848478]
[1761325549279,0.7,191.27,191.26,5.42848478]
[1761325549477,4.24543874,191.27,191.26,5.42848478]
[1761325550196,4.24543874,191.27,191.26,0.2]
[1761325551488,0.7,191.27,191.26,0.2]
[1761325552058,4.24543874,191.27,191.26,0.2]
[1761325552252,5.22716489,191.31,191.26,5.42848478]
[1761325552509,36.54,191.32,191.26,8.97392352]
[1761325552653,37.25,191.32,191.26,8.97392352]
[1761325552858,0.71,191.31,191.26,8.97392352]
[1761325553181,4.25543874,191.31,191.26,22.04513548]
[1761325553572,0.71,191.3,191.26,22.04513548]
[1761325554076,0.71,191.3,191.26,18.49969674]
[1761325554284,4.25543874,191.3,191.26,18.49969674]
[1761325554781,0.71,191.29,191.26,18.49969674]
[1761325557578,102.2,191.36,191.27,3.54543874]
[1761325557760,0.71,191.31,191.27,3.54543874]
[1761325558475,0.71,191.31,191.28,5.2279381]
[1761325558681,4.25543874,191.31,191.28,5.2279381]
[1761325559083,0.71,191.3,191.28,5.2279381]
[1761325559668,4.25543874,191.3,191.28,5.2279381]
[1761325560162,0.71,191.29,191.28,5.2279381]
[1761325560668,4.25543874,191.29,191.27,5.22821142]
[1761325561180,0.71,191.28,191.27,5.22821142]
[1761325562082,5.22665924,191.33,191.27,5.22821142]
[1761325562263,0.71,191.3,191.27,5.22821142]
[1761325563284,0.71,191.3,191.27,18.29873999]
[1761325567772,2.98480022,191.3,191.27,5.22821142]
[1761325567986,2.27480022,191.28,191.26,0.2]
[1761325568499,0.71,191.27,191.26,0.2]
[1761325569780,0.71,191.27,191.26,5.42848478]
[1761325570301,0.71,191.27,191.26,0.2]
[1761325577297,2.98480022,191.27,191.26,0.2]
[1761325578301,0.71,191.27,191.26,0.2]
[1761325578600,2.98480022,191.27,191.26,0.2]
[1761325578908,39.50480022,191.27,191.26,0.2]
[1761325581906,2.98480022,191.27,191.26,0.2]
[1761325582084,39.50480022,191.27,191.26,0.2]
[1761325583400,2.98480022,191.27,191.26,0.2]
[1761325583712,39.50480022,191.27,191.26,0.2]
[1761325584991,36.52,191.28,191.26,5.42848478]
[1761325585192,0.71,191.29,191.26,5.42848478]
[1761325585520,37.23,191.29,191.26,5.42848478]
[1761325586198,37.23,191.33,191.28,2.27480022]
[1761325586398,0.71,191.32,191.28,2.27480022]
[1761325586814,0.71,191.32,191.29,2.27480022]
[1761325587018,0.71,191.32,191.29,5.22760201]
[1761325590024,0.71,191.32,191.29,7.50240223]
[1761325590895,0.71,191.32,191.29,18.29676401]
[1761325591101,0.71,191.32,191.29,20.57156423]
[1761325593142,10.87647521,191.36,191.31,2.27480022]
[1761325593420,37.21,191.35,191.3,2.27480022]
[1761325593810,0.71,191.34,191.3,2.27480022]
[1761325594008,0.71,191.34,191.31,5.22711828]
[1761325594234,0.71,191.34,191.32,2.27480022]
[1761325594413,37.21,191.36,191.32,2.27480022]
[1761325594914,0.71,191.35,191.32,2.27480022]
[1761325596214,0.71,191.35,191.33,5.22657189]
[1761325597139,0.71,191.35,191.33,7.50137211]
[1761325597510,0.71,191.35,191.33,5.22657189]
[1761325600030,2.27480022,191.34,191.31,5.2268462]
[1761325600218,0.71,191.35,191.28,2.27480022]
[1761325600412,0.71,191.34,191.29,2.27480022]
[1761325601032,0.71,191.34,191.29,15.34389531]
[1761325601202,0.71,191.34,191.3,5.22739153]
[1761325602611,0.71,191.34,191.29,18.29671181]
[1761325602818,2.27480022,191.32,191.27,5.22816944]
[1761325603130,2.27480022,191.32,191.28,15.70228468]
[1761325603320,0.71,191.31,191.29,5.2276648]
[1761325604635,0.71,191.31,191.28,5.2279381]
[1761325604935,0.71,191.31,191.28,10.454237]
[1761325605123,0.71,191.31,191.28,12.72903722]
[1761325605320,0.71,191.31,191.28,10.454237]
[1761325605524,0.71,191.31,191.28,12.72903722]
[1761325606257,2.27480022,191.3,191.26,0.2]
[1761325606543,2.98480022,191.31,191.27,5.22606145]
[1761325606725,0.71,191.3,191.27,5.22606145]
[1761325608635,0.71,191.3,191.28,5.2279381]
[1761325609054,2.98480022,191.3,191.26,0.2]
[1761325609254,2.27480022,191.29,191.26,0.2]
[1761325609451,2.92480022,191.29,191.26,13.47121196]
[1761325609636,0.65,191.28,191.26,13.47121196]
[1761325609838,0.65,191.28,191.26,18.69956115]
[1761325610353,0.65,191.28,191.26,13.47121196]
[1761325611146,0.65,191.28,191.26,18.69956065]
[1761325611758,2.27480022,191.27,191.26,0.2]
[1761325612056,2.92480022,191.27,191.26,0.2]
[1761325616163,39.42480022,191.27,191.26,0.2]
[1761325617251,44.65301164,191.27,191.26,0.2]
[1761325618275,0.65,191.27,191.26,0.2]
[1761325618567,39.42480022,191.27,191.26,0.2]
[1761325619570,44.65301164,191.27,191.26,0.2]
[1761325620092,42.37821142,191.27,191.26,0.2]
[1761325620283,53.25468663,191.27,191.26,0.2]
[1761325621365,55.52948685,191.27,191.26,0.2]
[1761325624358,33.75647521,191.24,191.23,0.2]
[1761325624567,72.53127543,191.24,191.14,5.23176729]
[1761325624880,2.27480022,191.18,191.14,5.23176729]
[1761325625061,2.27480022,191.17,191.14,5.23176729]
[1761325625475,2.96480022,191.17,191.13,18.31151938]
[1761325625670,2.96480022,191.17,191.13,18.91151938]
[1761325626382,0.69,191.17,191.13,18.91151938]
[1761325626569,2.96480022,191.17,191.13,18.91151938]
[1761325626764,4.25035965,191.17,191.14,15.71379933]
[1761325626973,3.56035965,191.16,191.12,5.23231477]
[1761325627179,4.25035965,191.16,191.12,5.23231477]
[1761325627560,36.5,191.19,191.13,4.16035965]
[1761325627863,40.75035965,191.19,191.14,0.6]
[1761325628059,40.75035965,191.19,191.13,19.2749821]